bitfinex-derivatives/quotes_SOLF0:USTF0_20241120
["timestamp","ask_amount","ask_price","bid_price","bid_amount"]
[1732118192710,2.0959,238.28,238.23,2.0963]
[1732118192913,2.0959,238.28,238.2,6.48721228]
[1732118194017,6.48721228,238.27,238.18,1.2634]
[1732118194217,6.48721228,238.27,238.18,10.37061228]
[1732118194218,2.0962,238.25,238.18,10.37061228]
[1732118194521,6.48721228,238.27,238.18,10.37061228]
[1732118194714,6.48721228,238.25,238.18,1.2634]
[1732118196312,2.0963,238.24,238.19,2.0966]
[1732118196612,6.48721228,238.2,238.08,6.48721228]
[1732118196822,2.0972,238.14,238.09,2.0976]
[1732118197013,6.48721228,238.16,238.09,2.0976]
[1732118197412,2.0971,238.15,238.09,2.0976]
[1732118197613,6.48721228,238.16,238.08,6.48721228]
[1732118197811,2.62,238.22,238.12,6.48721228]
[1732118198010,12.56,238.33,238.12,6.48721228]
[1732118198011,6.48721228,238.2,238.12,6.48721228]
[1732118199219,6.48721228,238.2,238.14,2.0971]
[1732118199220,8.58391228,238.2,238.14,2.0971]
[1732118200921,8.58391228,238.2,238.12,6.48721228]
[1732118200922,2.0968,238.18,238.12,2.0973]
[1732118201114,8.58401228,238.18,238.12,2.0973]
[1732118201319,6.48721228,238.16,238.07,3.84]
[1732118201621,2.0971,238.15,238.08,2.0976]
[1732118201816,2.0971,238.15,238.07,3.84]
[1732118202012,6.48721228,238.1,238.01,5.7350689]
[1732118202212,2.0978,238.07,238.01,2.0982]
[1732118204921,2.0978,238.07,238.02,2.0982]
[1732118205222,2.0977,238.08,238.02,2.0982]
[1732118206219,10.1556619,238.11,238.02,2.0982]
[1732118207224,2.0977,238.08,238.02,2.0982]
[1732118209224,10.1556619,238.14,237.99,1.2492]
[1732118209523,10.1556619,238.11,237.99,1.2492]
[1732118209718,2.0979,238.06,238.0,2.0983]
[1732118211217,2.0979,238.05,237.99,1.2492]
[1732118211620,10.1556619,238.08,237.9,2.56]
[1732118211621,10.1556619,238.02,237.9,2.56]
[1732118213123,2.0986,237.98,237.9,2.56]
[1732118213429,10.1556619,238.02,237.9,2.56]
[1732118213924,2.0985,237.99,237.93,2.099]
[1732118214324,10.1556619,238.02,237.9,2.56]
[1732118214518,10.1556619,238.05,237.96,2.0987]
[1732118214726,10.1556619,238.05,237.9,2.56]
[1732118215024,2.58,238.07,237.94,10.1556619]
[1732118215230,10.1556619,238.05,237.9,2.56]
[1732118215821,2.0984,238.0,237.9,2.56]
[1732118216217,10.1556619,238.05,237.9,2.56]
[1732118216625,2.0983,238.01,237.9,2.56]
[1732118216929,2.0983,238.01,237.9,2.58]
[1732118217228,2.0983,238.01,237.95,2.0987]
[1732118217423,10.1556619,238.02,237.9,2.58]
[1732118217622,2.0985,237.99,237.93,2.0989]
[1732118217829,2.0985,237.99,237.9,2.58]
[1732118218124,10.1556619,238.02,237.9,2.58]
[1732118218323,10.1556619,238.02,237.89,2.6074]
[1732118218324,10.1556619,238.02,237.91,2.0991]
[1732118219128,10.16355904,238.02,237.89,2.6074]
[1732118219324,10.16355904,238.02,237.92,2.0991]
[1732118219531,10.16355904,238.02,237.89,2.6074]
[1732118219828,10.16355904,237.96,237.89,2.6074]
[1732118220221,2.0989,237.94,237.89,4.7067]
[1732118220426,10.16355904,237.96,237.89,4.7067]
[1732118220824,10.16355904,237.96,237.91,2.0991]
[1732118221425,2.0986,237.98,237.92,2.0991]
[1732118221625,10.16355904,237.99,237.89,1.3039]
[1732118222030,2.0989,237.94,237.89,1.3039]
[1732118222528,10.16355904,237.96,237.89,1.3039]
[1732118222732,10.16355904,238.08,237.89,1.3039]
[1732118222733,10.16355904,237.99,237.89,1.3039]
[1732118222932,12.74355904,238.02,237.89,1.3039]
[1732118223132,10.16355904,238.02,237.89,1.3039]
[1732118224237,2.0986,237.98,237.94,2.0989]
[1732118224734,2.0987,237.97,237.92,2.099]
[1732118225230,6.50648943,237.94,237.92,2.099]
[1732118225433,6.50648943,237.94,237.89,1.3039]
[1732118225935,6.50648943,237.9,237.84,1.2606]
[1732118226233,6.50648943,237.9,237.82,1.2597]
[1732118226533,8.60578943,237.9,237.84,2.0997]
[1732118226728,6.50648943,237.9,237.84,2.0997]
[1732118227033,6.50648943,237.88,237.84,2.0997]
[1732118227231,6.50648943,237.88,237.82,1.2597]
[1732118227435,8.60588943,237.88,237.83,2.0999]
[1732118228034,6.50648943,237.86,237.81,2.1]
[1732118228736,2.0995,237.87,237.82,2.0999]
[1732118228935,10.17404347,237.89,237.74,1.2875]
[1732118229133,12.75404347,237.89,237.75,2.58]
[1732118229334,10.17404347,237.86,237.74,3.8675]
[1732118229836,2.0999,237.84,237.74,3.8675]
[1732118230335,2.1001,237.81,237.68,2.58]
[1732118230528,2.1001,237.81,237.7,1.2487]
[1732118231031,10.17404347,237.83,237.7,1.2487]
[1732118231032,2.1002,237.79,237.7,1.2487]
[1732118231231,10.17404347,237.83,237.7,1.2487]
[1732118231437,2.1001,237.81,237.74,2.1007]
[1732118231837,10.17404347,237.83,237.78,2.1003]
[1732118232135,2.58,237.89,237.67,7.81827147]
[1732118232136,10.17404347,237.84,237.67,7.81827147]
[1732118232438,10.17404347,237.84,237.66,2.1013]
[1732118232439,2.1007,237.74,237.66,2.1013]
[1732118232739,12.75404347,237.77,237.65,1.2487]
[1732118234239,2.1008,237.73,237.66,2.1014]
[1732118234436,12.75404347,237.77,237.65,1.2487]
[1732118234641,10.17404347,237.67,237.58,5.73838326]
[1732118234937,10.17404347,237.59,237.45,5.73838326]
[1732118235243,10.17404347,237.59,237.47,2.562]
[1732118235437,2.1018,237.62,237.52,2.1026]
[1732118235644,10.17404347,237.63,237.47,12.73604347]
[1732118235842,10.17404347,237.66,237.5,10.17404347]
[1732118236141,10.17404347,237.66,237.6,2.1019]
[1732118236340,10.17404347,237.66,237.56,2.58]
[1732118236543,10.17404347,237.69,237.56,2.58]
[1732118236736,10.17404347,237.69,237.59,2.1019]
[1732118236937,10.17404347,237.65,237.51,2.76]
[1732118237943,10.17404347,237.65,237.58,2.102]
[1732118238138,2.58,237.75,237.51,2.76]
[1732118238441,10.17404347,237.68,237.62,2.1017]
[1732118239140,10.17404347,237.68,237.6,2.76]
[1732118239340,10.17404347,237.64,237.6,2.76]
[1732118241144,10.17404347,237.64,237.62,2.1017]
[1732118241339,2.76,237.75,237.6,2.76]
[1732118241340,10.17404347,237.67,237.6,2.76]
[1732118241840,12.58,237.84,237.69,2.1011]
[1732118242143,10.17404347,237.75,237.69,2.1011]
[1732118242641,10.17404347,237.75,237.61,3.8141]
[1732118242841,10.17404347,237.78,237.62,12.93404347]
[1732118243042,10.17404347,237.81,237.65,10.17404347]
[1732118243243,10.17404347,237.84,237.68,10.17404347]
[1732118243443,10.17404347,237.84,237.71,10.17404347]
[1732118243746,10.17404347,237.84,237.75,2.1005]
[1732118243945,10.17404347,237.84,237.76,2.76]
[1732118244444,10.17404347,237.84,237.79,2.1002]
[1732118244639,10.17404347,237.84,237.76,2.76]
[1732118245444,10.17404347,237.84,237.79,2.1002]
[1732118245639,10.17404347,237.87,237.76,2.76]
[1732118246448,10.17404347,237.9,237.76,2.76]
[1732118246640,2.0984,238.01,237.9,2.0992]
[1732118246842,10.17404347,238.0,237.91,2.76]
[1732118247350,1.0286,238.0,237.91,2.76]
[1732118248545,1.0286,238.0,237.98,2.0985]
[1732118248745,1.0286,238.0,237.99,2.76]
[1732118248942,11.20264347,238.0,237.99,2.76]
[1732118250846,11.20264347,238.0,237.94,2.0989]
[1732118251048,11.20264347,238.0,237.95,2.76]
[1732118251049,1.0286,238.0,237.95,2.76]
[1732118251648,1.0286,238.0,237.96,1.2737]
[1732118252346,1.0286,238.0,237.98,2.0985]
[1732118253250,10.17404347,238.09,237.96,3.8898]
[1732118254352,10.17404347,238.06,237.96,5.3392]
[1732118254552,10.17404347,238.03,237.96,2.76]
[1732118255046,10.17404347,238.03,237.94,2.76]
[1732118255246,2.0983,238.01,237.94,2.76]
[1732118255849,2.0984,238.0,237.94,2.76]
[1732118256053,12.27244347,238.0,237.92,2.099]
[1732118256347,10.17404347,238.0,237.88,2.4903]
[1732118256546,2.0988,237.96,237.89,2.76]
[1732118256949,10.17404347,237.97,237.88,6.0935]
[1732118257256,2.0988,237.95,237.88,3.3335]
[1732118257554,10.17404347,237.97,237.89,2.76]
[1732118258051,2.099,237.93,237.89,2.76]
[1732118258445,2.099,237.93,237.88,1.2341]
[1732118258847,10.17404347,237.94,237.87,2.76]
[1732118259053,10.17404347,237.91,237.83,2.76]
[1732118260047,2.0994,237.88,237.83,2.76]
[1732118260849,16.2782625,237.92,237.83,2.76]
[1732118261550,16.2782625,237.92,237.84,2.0997]
[1732118261753,16.2782625,237.92,237.83,2.76]
[1732118262758,16.2782625,237.88,237.76,1.2047]
[1732118262957,16.2782625,237.88,237.73,1.2991]
[1732118263354,16.2782625,237.88,237.76,2.1004]
[1732118263657,16.2782625,237.84,237.73,1.2991]
[1732118264057,16.2782625,237.84,237.72,2.76]
[1732118264355,16.2782625,237.84,237.71,2.76]
[1732118264957,2.1001,237.81,237.71,4.8609]
[1732118265158,16.2782625,237.84,237.71,2.76]
[1732118265560,2.1,237.82,237.71,2.76]
[1732118265860,16.2782625,237.84,237.71,2.76]
[1732118266363,2.1001,237.81,237.76,2.1005]
[1732118266861,16.2782625,237.84,237.71,2.76]
[1732118267062,2.1002,237.8,237.71,2.76]
[1732118267269,16.2782625,237.84,237.71,2.76]
[1732118267561,16.2782625,237.84,237.72,2.9]
[1732118268459,2.1001,237.81,237.72,2.9]
[1732118269065,2.1001,237.81,237.76,2.1005]
[1732118269564,2.1003,237.79,237.74,2.1007]
[1732118269757,2.1003,237.79,237.72,2.9]
[1732118269959,16.2782625,237.84,237.69,1.2847]
[1732118270260,16.2782625,237.84,237.7,2.9]
[1732118271464,16.2782625,237.84,237.69,1.2847]
[1732118271664,2.1004,237.77,237.71,2.1008]
[1732118272361,2.1003,237.78,237.7,2.9]
[1732118272668,2.1003,237.78,237.72,2.1008]
[1732118273260,16.2782625,237.84,237.74,2.1006]
[1732118273261,2.1002,237.8,237.74,2.1006]
[1732118273564,16.2782625,237.84,237.7,2.9]
[1732118273764,2.1002,237.79,237.73,2.1007]
[1732118274367,2.1002,237.79,237.71,2.9]
[1732118274368,2.1002,237.79,237.74,2.1006]
[1732118276273,2.1001,237.8,237.71,2.9]
[1732118276573,16.2782625,237.84,237.71,2.9]
[1732118276773,2.1002,237.8,237.74,2.1006]
[1732118276964,2.1002,237.8,237.71,2.9]
[1732118277166,16.2782625,237.88,237.71,2.9]
[1732118277472,16.2782625,237.88,237.72,1.2467]
[1732118278073,16.2782625,237.84,237.72,1.2467]
[1732118278468,16.2782625,237.88,237.72,1.2467]
[1732118278665,16.2782625,237.88,237.8,2.1001]
[1732118278868,1.037,237.9,237.78,2.9]
[1732118279169,2.0998,237.85,237.78,2.9]
[1732118279374,2.0998,237.85,237.8,2.1001]
[1732118279675,1.037,237.9,237.78,2.9]
[1732118280169,2.0996,237.87,237.81,2.1]
[1732118280471,1.037,237.9,237.78,2.9]
[1732118280675,10.17762362,237.85,237.78,2.9]
[1732118280878,2.0998,237.84,237.8,2.1001]
[1732118281078,10.17762362,237.85,237.78,2.9]
[1732118281475,12.27742362,237.85,237.8,2.1001]
[1732118281679,2.0998,237.85,237.78,2.9]
[1732118282176,2.0998,237.85,237.8,2.1001]
[1732118282676,2.0996,237.86,237.82,2.0999]
[1732118284177,2.0998,237.85,237.81,2.1]
[1732118284381,2.0998,237.85,237.78,2.9]
[1732118284581,10.17762362,237.88,237.78,2.9]
[1732118284877,10.17762362,237.88,237.83,2.0999]
[1732118284878,2.0996,237.87,237.83,2.0999]
[1732118285282,10.17762362,237.88,237.83,2.0999]
[1732118286080,10.17762362,237.88,237.78,2.9]
[1732118286285,2.0996,237.86,237.82,2.1]
[1732118287186,10.17762362,237.88,237.8,2.1001]
[1732118287187,2.0997,237.85,237.8,2.1001]
[1732118287480,2.0997,237.85,237.78,2.9]
[1732118287981,2.9,238.02,237.88,2.0994]
[1732118288187,10.17762362,237.95,237.88,2.0994]
[1732118288883,10.17762362,237.95,237.9,2.0992]
[1732118289084,10.17762362,237.98,237.86,2.9]
[1732118289283,2.0992,237.92,237.86,2.9]
[1732118289492,10.17762362,237.98,237.86,2.9]
[1732118289782,1.0378,238.01,237.86,2.9]
[1732118289783,10.17762362,237.95,237.86,2.9]
[1732118289989,10.17762362,237.95,237.89,2.0993]
[1732118290183,10.17762362,237.95,237.86,2.9]
[1732118290390,2.0989,237.94,237.86,2.9]
[1732118290585,10.17762362,237.98,237.86,2.9]
[1732118290785,1.0378,238.01,237.86,2.9]
[1732118290991,2.0987,237.97,237.93,2.099]
[1732118291489,2.0986,237.98,237.94,2.0989]
[1732118291683,2.0986,237.98,237.86,2.9]
[1732118291684,10.17762362,238.02,237.93,2.9]
[1732118292282,2.9,238.09,237.93,2.9]
[1732118292283,10.17762362,238.05,237.93,2.9]
[1732118292486,10.17762362,238.08,237.93,2.9]
[1732118292792,10.17762362,238.08,237.94,11.48512362]
[1732118292990,10.17762362,238.08,237.94,12.74152362]
[1732118293891,1.04,238.11,237.97,10.17762362]
[1732118293892,10.17762362,238.11,237.97,10.17762362]
[1732118294084,10.17762362,238.11,238.04,2.098]
[1732118294386,2.0976,238.09,238.02,2.9]
[1732118294592,10.17762362,238.08,238.02,2.9]
[1732118294785,10.17762362,238.05,237.94,2.5639]
[1732118294983,10.17762362,238.05,237.97,2.9]
[1732118295495,10.17762362,238.02,237.95,2.0988]
[1732118295785,12.27582362,238.02,237.96,2.0987]
[1732118296084,10.17762362,238.02,237.96,2.0987]
[1732118296785,16.25849234,238.06,237.96,2.0987]
[1732118297290,16.25849234,238.06,237.99,2.0985]
[1732118297483,16.25849234,238.06,237.94,1.3075]
[1732118297789,16.25849234,238.14,237.94,17.56599234]
[1732118297985,16.25849234,238.1,237.94,1.3075]
[1732118298294,16.25849234,238.06,237.94,1.3075]
[1732118298693,2.0983,238.01,237.95,2.0987]
[1732118298990,16.25849234,238.06,237.95,2.0987]
[1732118299395,2.0984,238.01,237.95,2.0987]
[1732118299591,16.25849234,238.06,237.94,1.3075]
[1732118299987,2.0982,238.02,237.98,2.0985]
[1732118300187,16.25849234,238.06,237.98,2.0985]
[1732118300393,16.25849234,238.1,237.94,1.3075]
[1732118300587,2.0978,238.07,238.03,2.0981]
[1732118300785,2.0978,238.07,237.94,1.3075]
[1732118301092,2.0979,238.06,237.98,2.0985]
[1732118301285,2.0979,238.06,237.94,1.3075]
[1732118302294,2.0979,238.05,237.94,1.3075]
[1732118303396,2.0979,238.05,237.99,2.0984]
[1732118304288,2.0979,238.05,238.0,2.0984]
[1732118307598,2.0979,238.05,237.94,1.3075]
[1732118307899,16.25849234,238.1,237.94,1.3075]
[1732118308400,2.8,238.15,237.94,1.3075]
[1732118308591,16.25849234,238.13,237.94,1.3075]
[1732118309298,2.0978,238.07,237.95,2.8]
[1732118309498,2.0978,238.07,237.96,2.8]
[1732118310101,2.0978,238.07,238.02,2.0981]
[1732118310300,2.0977,238.09,237.97,1.2003]
[1732118310500,16.25849234,238.13,238.02,2.0981]
[1732118310699,16.25849234,238.13,237.97,1.2003]
[1732118310903,2.0977,238.08,237.97,1.2003]
[1732118311701,2.0977,238.08,238.03,2.098]
[1732118313396,16.25849234,238.13,237.97,1.2003]
[1732118313601,2.0976,238.09,237.97,1.2003]
[1732118313997,16.25849234,238.13,237.97,1.2003]
[1732118314203,2.0975,238.11,238.07,2.0978]
[1732118314705,2.0975,238.11,238.06,2.0978]
[1732118314904,2.0975,238.11,238.04,2.8]
[1732118315799,16.25849234,238.17,238.04,2.8]
[1732118316001,16.25849234,238.17,238.05,2.49]
[1732118316207,2.0971,238.15,238.1,2.0974]
[1732118316506,16.25849234,238.21,238.05,2.49]
[1732118316709,10.14686287,238.22,238.06,11.46406287]
[1732118317200,11.18336287,238.25,238.1,10.14686287]
[1732118317402,10.14686287,238.25,238.11,2.8]
[1732118318502,10.14686287,238.28,238.11,2.8]
[1732118318702,13.98336287,238.31,238.13,10.14686287]
[1732118319303,2.0961,238.27,238.13,10.14686287]
[1732118319704,10.14686287,238.32,238.16,10.14686287]
[1732118319909,1.0365,238.42,238.11,2.8]
[1732118319910,10.14686287,238.35,238.17,3.7751]
[1732118320108,10.14686287,238.32,238.18,2.8]
[1732118320308,2.0958,238.3,238.24,2.0962]
[1732118321200,10.14686287,238.32,238.18,2.8]
[1732118321405,2.0957,238.31,238.18,2.8]
[1732118322408,10.14686287,238.32,238.18,2.8]
[1732118322609,2.0958,238.3,238.24,2.0962]
[1732118322809,2.8,238.41,238.25,2.8]
[1732118323011,10.14686287,238.36,238.25,2.8]
[1732118323414,2.0955,238.33,238.27,2.096]
[1732118323711,10.14686287,238.36,238.25,2.8]
[1732118323912,2.0955,238.33,238.28,2.0959]
[1732118324312,10.14686287,238.36,238.25,2.8]
[1732118324812,2.0954,238.34,238.3,2.0957]
[1732118325010,2.0954,238.34,238.25,2.8]
[1732118326315,2.0954,238.34,238.29,2.0957]
[1732118326514,2.0954,238.34,238.25,2.8]
[1732118327010,2.0954,238.34,238.27,2.0959]
[1732118327213,2.0954,238.34,238.25,2.8]
[1732118328420,2.0954,238.34,238.29,2.0958]
[1732118329721,2.0952,238.36,238.25,2.8]
[1732118330022,10.14686287,238.42,238.27,10.14686287]
[1732118330213,10.14686287,238.42,238.28,1.3102]
[1732118330412,10.14686287,238.45,238.3,10.14686287]
[1732118330720,10.14686287,238.45,238.31,2.64]
[1732118331213,10.14686287,238.48,238.34,10.14686287]
[1732118331618,2.095,238.39,238.33,2.0954]
[1732118331817,10.14686287,238.42,238.28,5.1751]
[1732118332016,10.14686287,238.39,238.28,2.5351]
[1732118332518,10.14686287,238.39,238.29,2.0958]
[1732118332716,10.14686287,238.39,238.28,2.5351]
[1732118334226,2.0954,238.35,238.31,2.0956]
[1732118334427,10.14686287,238.39,238.28,2.5351]
[1732118336227,2.0953,238.36,238.31,2.0956]
[1732118336423,10.14686287,238.39,238.31,2.0956]
[1732118336819,2.0953,238.36,238.31,2.0956]
[1732118337220,10.14686287,238.39,238.28,1.3102]
[1732118337428,10.14686287,238.44,238.28,3.9502]
[1732118337429,10.14686287,238.36,238.28,3.9502]
[1732118338021,10.14686287,238.36,238.28,6.0461]
[1732118338527,2.0956,238.33,238.29,2.0958]
[1732118340625,2.0954,238.34,238.3,2.0957]
[1732118340830,10.14686287,238.36,238.28,2.64]
[1732118341830,10.14686287,238.36,238.29,2.0958]
[1732118343034,2.0954,238.35,238.27,2.64]
[1732118343535,2.0954,238.35,238.27,4.7359]
[1732118344135,2.0954,238.35,238.28,2.0959]
[1732118345734,2.0954,238.34,238.27,2.096]
[1732118345935,10.14686287,238.36,238.26,2.64]
[1732118346132,10.14686287,238.36,238.19,0.61952]
[1732118346133,10.14686287,238.32,238.19,0.61952]
[1732118346437,2.0961,238.27,238.19,3.25952]
[1732118346632,12.58,238.51,238.24,10.14686287]
[1732118346837,10.14686287,238.43,238.28,2.0959]
[1732118347040,2.0953,238.36,238.25,2.64]
[1732118347340,10.14686287,238.43,238.25,2.64]
[1732118347838,10.14686287,238.39,238.25,2.64]
[1732118348434,2.0954,238.34,238.27,2.096]
[1732118348938,10.14686287,238.39,238.27,2.096]
[1732118350341,2.0953,238.35,238.27,2.096]
[1732118351040,2.0952,238.37,238.29,2.0958]
[1732118351243,10.14686287,238.42,238.27,10.14686287]
[1732118351640,10.14686287,238.42,238.28,1.2895]
[1732118352137,2.0949,238.39,238.28,1.2895]
[1732118353241,2.0949,238.39,238.32,2.0955]
[1732118353435,2.0949,238.39,238.32,2.64]
[1732118355143,10.14686287,238.45,238.32,2.64]
[1732118355737,10.14686287,238.48,238.33,10.14686287]
[1732118355950,1.0322,238.5,238.36,10.14686287]
[1732118356442,1.0322,238.5,238.39,10.14686287]
[1732118356640,1.0322,238.5,238.4,2.64]
[1732118357042,3.1262,238.5,238.4,2.64]
[1732118357443,10.14686287,238.54,238.4,2.64]
[1732118357643,2.094,238.5,238.43,2.0946]
[1732118359345,2.094,238.5,238.42,2.0946]
[1732118359649,10.14686287,238.51,238.4,2.66]
[1732118361046,2.0941,238.5,238.41,2.0948]
[1732118361653,2.0939,238.51,238.43,2.0946]
[1732118361850,10.14686287,238.54,238.4,2.66]
[1732118362042,10.14686287,238.51,238.4,2.66]
[1732118362247,2.0941,238.49,238.41,2.0947]
[1732118362553,10.14686287,238.51,238.41,2.0947]
[1732118362746,10.14686287,238.51,238.4,2.66]
[1732118362953,2.0942,238.48,238.4,2.66]
[1732118363141,10.14686287,238.51,238.4,2.66]
[1732118363651,2.0942,238.48,238.4,2.66]
[1732118363954,10.14686287,238.45,238.38,3.9727]
[1732118364155,12.24136287,238.45,238.38,6.0677]
[1732118364449,10.14686287,238.48,238.38,3.9727]
[1732118365048,10.14686287,238.48,238.38,1.3127]
[1732118365551,10.14686287,238.45,238.37,2.66]
[1732118366143,2.0945,238.44,238.37,2.66]
[1732118367550,10.14686287,238.45,238.37,2.66]
[1732118367853,10.14686287,238.48,238.37,2.66]
[1732118368643,2.0944,238.46,238.37,4.755]
[1732118368844,10.14686287,238.48,238.37,2.66]
[1732118369658,2.0944,238.46,238.37,4.755]
[1732118370052,2.0944,238.46,238.37,2.66]
[1732118370248,2.0944,238.46,238.38,2.095]
[1732118370651,2.0943,238.47,238.37,2.66]
[1732118372261,2.0943,238.47,238.4,2.0948]
[1732118373269,10.14686287,238.45,238.37,2.66]
[1732118373754,2.0946,238.44,238.37,2.66]
[1732118374059,10.14686287,238.48,238.37,2.66]
[1732118374359,10.14686287,238.51,238.37,2.66]
[1732118374960,2.0941,238.49,238.41,2.0947]
[1732118375155,10.14686287,238.51,238.37,2.66]
[1732118375357,2.0941,238.49,238.42,2.0946]
[1732118375860,10.14686287,238.54,238.37,12.80686287]
[1732118376258,2.094,238.5,238.42,2.0946]
[1732118376459,2.094,238.5,238.43,2.66]
[1732118376860,10.14686287,238.54,238.37,10.14686287]
[1732118377061,2.0942,238.47,238.4,2.0949]
[1732118377963,2.0942,238.48,238.41,2.0947]
[1732118378666,10.14686287,238.51,238.4,2.0948]
[1732118378864,2.0942,238.47,238.4,2.0948]
[1732118379661,10.14686287,238.51,238.38,2.66]
[1732118379861,2.0942,238.48,238.41,2.0948]
[1732118381966,12.58,238.59,238.38,2.66]
[1732118382169,2.0939,238.51,238.38,2.66]
[1732118382568,2.0939,238.51,238.43,2.0945]
[1732118382871,2.0939,238.51,238.44,3.9603]
[1732118384371,2.0939,238.51,238.44,6.0548]
[1732118384863,10.14686287,238.54,238.46,2.0943]
[1732118385067,10.14686287,238.57,238.44,3.9603]
[1732118385467,2.0936,238.54,238.47,2.0942]
[1732118385967,2.0934,238.58,238.51,2.0938]
[1732118386172,10.14686287,238.63,238.51,2.66]
[1732118386468,2.0934,238.57,238.51,2.66]
[1732118387363,10.14686287,238.57,238.51,2.66]
[1732118388765,2.0936,238.55,238.51,2.66]
[1732118389676,2.0933,238.58,238.51,2.66]
[1732118389968,10.14686287,238.6,238.51,2.66]
[1732118390373,4.1851,238.67,238.51,2.66]
[1732118390670,10.14686287,238.64,238.51,2.66]
[1732118392267,4.1851,238.67,238.52,2.0938]
[1732118392571,10.14686287,238.63,238.52,2.0938]
[1732118394467,2.0932,238.59,238.52,2.0938]
[1732118395372,2.0931,238.6,238.52,2.0938]
[1732118396269,10.14686287,238.58,238.44,7.03868326]
[1732118396574,10.14686287,238.58,238.44,1.3003]
[1732118396575,2.0939,238.51,238.44,1.3003]
[1732118397171,2.0939,238.51,238.44,3.3948]
[1732118397372,2.0939,238.52,238.44,3.3948]
[1732118397574,2.0939,238.52,238.45,2.6]
[1732118397773,1.0278,238.61,238.45,2.6]
[1732118397974,2.0933,238.58,238.45,12.74686287]
[1732118398175,10.14686287,238.49,238.41,0.8635]
[1732118399279,2.0943,238.47,238.41,0.8635]
[1732118400473,10.14686287,238.49,238.41,0.8635]
[1732118400669,1.0296,238.52,238.41,0.8635]
[1732118400876,2.0946,238.43,238.41,0.8635]
[1732118401677,3.6296,238.52,238.41,0.8635]
[1732118402580,9.43247066,238.51,238.41,0.8635]
[1732118403175,2.0942,238.48,238.41,0.8635]
[1732118403375,9.43247066,238.51,238.41,0.8635]
[1732118404679,3.6296,238.52,238.41,0.8635]
[1732118405581,12.58,238.5,238.41,0.8635]
[1732118405781,12.58,238.5,238.3,1.2965]
[1732118405982,12.58,238.5,238.28,1.2837]
[1732118405983,12.58,238.5,238.26,5.73485142]
[1732118406182,12.58,238.48,238.26,5.73485142]
[1732118406383,12.58,238.46,238.26,5.73485142]
[1732118406585,12.58,238.44,238.26,5.73485142]
[1732118407078,12.58,238.42,238.26,5.73485142]
[1732118407277,0.75455426,238.41,238.21,2.4605]
[1732118407677,12.58,238.4,238.21,2.4605]
[1732118407882,15.18,238.39,238.21,2.4605]
[1732118408086,2.0958,238.29,238.21,2.4605]
[1732118408278,15.18,238.39,238.21,2.4605]
[1732118408476,2.6,238.38,238.21,2.4605]
[1732118409082,15.18,238.38,238.21,1.2448]
[1732118409282,2.0961,238.26,238.21,1.2448]
[1732118409488,2.6,238.3,238.21,1.2448]
[1732118409781,2.6,238.3,238.17,1.2933]
[1732118409978,2.0963,238.24,238.17,1.2933]
[1732118410180,2.0963,238.24,238.15,2.097]
[1732118410581,2.0964,238.23,238.14,1.2133]
[1732118410778,2.6,238.23,238.14,1.2133]
[1732118410982,2.0966,238.2,238.12,22.93940568]
[1732118411285,2.6,238.23,238.12,22.93940568]
[1732118411485,0.1701,238.29,238.12,22.93940568]
[1732118411681,2.78,238.27,238.12,22.93940568]
[1732118412086,2.0962,238.26,238.17,2.0969]
[1732118412382,12.58,238.38,238.13,2.78]
[1732118412383,2.78,238.3,238.13,2.78]
[1732118412588,2.78,238.3,238.14,2.78]
[1732118412788,2.78,238.3,238.16,2.0969]
[1732118413082,2.78,238.3,238.15,1.2776]